fUST/lending_fUST_20250421
["ID","MTS","AMOUNT","RATE_DAILY","PERIOD"]
[358552202,1745247458104,-200.0,0.00035,120]
[358552203,1745247458131,-2085.83,0.000353,30]
[358552204,1745247458157,-200.0,0.00036,120]
[358552205,1745247458186,-524.52612244,0.000362,120]
[358552206,1745247458211,-524.52612242,0.000362,120]
[358552207,1745247458236,-524.52612242,0.000362,120]
[358552208,1745247458261,-8050.8,0.000362,30]
[358552209,1745247458286,-312.84021666,0.000362,30]
[358552210,1745247458312,-294.511635,0.0003653,120]
[358552211,1745247458338,-169.494,0.00037014,47]
[358552212,1745247458364,-2085.83,0.000376,30]
[358552213,1745247458392,-200.0,0.00038,120]
[358552214,1745247458417,-160.0,0.00038,30]
[358552215,1745247458444,-160.93016503,0.00038247,30]
[358552216,1745247458470,-8050.8,0.000384,30]
[358552217,1745247458496,-160.93016503,0.00038658,30]
[358552218,1745247458521,-160.93016503,0.00039068,30]
[358552219,1745247458547,-2085.83,0.000392,30]
[358552220,1745247458572,-524.52612242,0.00039232,120]
[358552221,1745247458597,-160.93016503,0.00039479,30]
[358552222,1745247458624,-160.93016503,0.0003989,30]
[358552223,1745247458651,-200.0,0.000399,41]
[358552224,1745247458678,-200.0,0.0004,41]
[358552225,1745247458705,-200.0,0.0004,120]
[358552226,1745247458730,-157.1442554,0.00040164,30]
[358552227,1745247458757,-160.93016503,0.00040301,30]
[358552228,1745247458784,-8050.8,0.000404,30]
[358552229,1745247458811,-200.0,0.000409,45]
[358552230,1745247458837,-200.0,0.00041,45]
[358552231,1745247458862,-499.9999,0.00041,120]
[358552232,1745247458888,-150.5,0.0004107,120]
[358552233,1745247458913,-150.5,0.0004108,120]
[358552234,1745247458940,-150.5,0.0004109,120]
[358552235,1745247458966,-294.511635,0.00041096,120]
[358552236,1745247458992,-153.0,0.00041233,30]
[358552237,1745247459017,-361.239449,0.00041452,30]
[358552238,1745247459042,-361.239449,0.00041452,30]
[358552239,1745247459069,-361.239449,0.00041452,30]
[358552240,1745247459104,-361.239449,0.00041452,30]
[358552241,1745247459139,-361.239449,0.00041452,30]
[358552242,1745247459166,-707.659298,0.00041452,30]
[358552243,1745247459194,-258.0,0.0004171,60]
[358552244,1745247459221,-153.0,0.00041781,30]
[358552245,1745247459248,-153.0,0.00041781,30]
[358552246,1745247459275,-153.0,0.00041781,30]
[358552247,1745247459301,-153.0,0.00041781,30]
[358552248,1745247459326,-314.6165971,0.00041863,30]
[358552249,1745247459364,-157.1442554,0.00041863,30]
[358552250,1745247459399,-200.0,0.000419,49]
[358552251,1745247459433,-200.0,0.00042,49]
[358552252,1745247459463,-200.0,0.00042,120]
[358552253,1745247459497,-315.1388384,0.00042,30]
[358552254,1745247459528,-310.6610457,0.00042,30]
[358552255,1745247459559,-330.8132793,0.00042,30]
[358552256,1745247459590,-4000.0,0.000425,120]
[358552257,1745247459621,-157.1442554,0.00042685,30]
[358552258,1745247459654,-200.0,0.000429,53]
[358552259,1745247459687,-200.0,0.000429,53]
[358552260,1745247459719,-200.0,0.000429,53]
[358552261,1745247459749,-150.5,0.0004298,120]
[358552262,1745247459777,-150.5,0.0004299,120]
[358552263,1745247459811,-10000.0,0.00043,30]
[358552264,1745247459840,-151.0,0.00043,120]
[358552265,1745247459872,-151.0,0.00043,120]
[358552266,1745247459904,-151.0,0.00043,120]
[358552267,1745247459934,-151.0,0.00043,120]
[358552268,1745247459961,-151.0,0.00043,120]
[358552269,1745247459991,-200.0,0.00043,53]
[358552270,1745247460022,-153.0,0.00043,90]
[358552271,1745247460051,-160.0,0.00043,30]
[358552272,1745247460081,-312.84021666,0.00043,120]
[358552273,1745247460111,-312.84021666,0.00043,30]
[358552274,1745247460140,-420.65680271,0.00043,120]
[358552275,1745247460170,-420.65680271,0.00043,30]
[358552276,1745247460205,-200.0,0.00043341,120]
[358552277,1745247460235,-207.68,0.0004348,120]
[358552278,1745247460265,-150.5,0.0004349,120]
[358552279,1745247460297,-269.9969,0.000435,120]
[358552280,1745247460324,-311.2198851,0.00043589,30]
[358552281,1745247460353,-313.9692445,0.00043589,30]
[358552282,1745247460383,-200.0,0.0004367,120]
[358552283,1745247460415,-358.81,0.000438,90]
[358552284,1745247460451,-999.0,0.00043835,120]
[358552285,1745247460479,-1000.0,0.00043835,120]
[358552286,1745247460508,-1000.0,0.00043835,120]
[358552287,1745247460538,-567.35307552,0.00043835,120]
[358552288,1745247460569,-50000.0,0.00043836,120]
[358552289,1745247460599,-200.0,0.000439,57]
[358552290,1745247460632,-200.0,0.000439,57]
[358552291,1745247460660,-200.0,0.000439,57]
[358552292,1745247460691,-200.0,0.0004392,120]
[358552293,1745247460721,-1055.42,0.00044,60]
[358552294,1745247460755,-300.0,0.00044,120]
[358552295,1745247460785,-345786.08699978,0.00044,30]
[358552296,1745247460812,-151.0,0.00044,120]
[358552297,1745247460840,-151.0,0.00044,120]
[358552298,1745247460869,-200.0,0.00044,57]
[358552299,1745247460899,-151.0,0.00044,120]
[358552300,1745247460927,-153.105098,0.00044,120]
[358552301,1745247460955,-151.0,0.00044,120]
[358552302,1745247460984,-151.0,0.00044,120]
[358552303,1745247461184,-151.0,0.00044,120]
[358552304,1745247461213,-151.0,0.00044,120]
[358552305,1745247461241,-151.0,0.00044,120]
[358552306,1745247461266,-160.0,0.00044,120]
[358552307,1745247461291,-151.0,0.00044,120]
[358552308,1745247461318,-151.0,0.00044,120]
[358552309,1745247461345,-312.84021666,0.00044,120]
[358552310,1745247461373,-312.84021666,0.00044,30]
[358552311,1745247461399,-151.0,0.00044,120]
[358552312,1745247461425,-151.0,0.00044,120]
[358552313,1745247461450,-2085.83,0.000443,30]
[358552314,1745247461477,-999.0,0.00044383,120]
[358552315,1745247461502,-2085.83,0.000444,30]
[358552316,1745247461527,-745.48772147,0.00044622,120]
[358552317,1745247461553,-699.4089786,0.00044622,120]
[358552318,1745247461577,-183.2715,0.00044625,120]
[358552319,1745247461602,-202.99175,0.00044625,120]
[358552320,1745247461626,-457.71072757,0.00044661,120]
[358552321,1745247461651,-8050.79,0.000447,30]
[358552322,1745247461677,-200.0,0.00044856,120]
[358552323,1745247461703,-153.0,0.00044877,90]
[358552324,1745247461729,-222.68907168,0.00044887,30]
[358552325,1745247461754,-500.0,0.00044892,120]
[358552326,1745247461779,-310.59370867,0.000449,120]
[358552327,1745247461805,-200.0,0.000449,61]
[358552328,1745247461830,-200.0,0.000449,61]
[358552329,1745247461855,-200.0,0.000449,61]
[358552330,1745247461880,-999.0,0.00044931,120]
[358552331,1745247461905,-200.0,0.00044944,120]
[358552332,1745247461931,-151.0,0.00045,120]
[358552333,1745247461955,-785.15175425,0.00045,120]
[358552334,1745247461981,-160.66496406,0.00045,30]
[358552335,1745247462007,-1445.0,0.00045,120]
[358552336,1745247462033,-864.33873,0.00045,120]
[358552337,1745247462057,-247.08237815,0.00045,120]
[358552338,1745247462083,-16296.66403594,0.00045,120]
[358552339,1745247462115,-447.68509745,0.00045,120]
[358552340,1745247462155,-170.31672878,0.00045,30]
[358552341,1745247462180,-800.76193552,0.00045,120]
[358552342,1745247462210,-200.0,0.00045,61]
[358552343,1745247462234,-235.95067016,0.0004503,120]
[358552344,1745247462261,-524.52612242,0.00045037,120]
[358552345,1745247462287,-151.0,0.0004506,120]
[358552346,1745247462315,-500.0,0.00045092,120]
[358552347,1745247462346,-283.629,0.00045137,30]
[358552348,1745247462372,-151.0,0.00045139,120]
[358552349,1745247462399,-151.0,0.00045139,120]
[358552350,1745247462424,-151.0,0.00045139,120]
[358552351,1745247462450,-151.0,0.00045139,120]
[358552352,1745247462475,-151.0,0.00045139,120]
[358552353,1745247462501,-151.0,0.00045139,120]
[358552354,1745247462526,-175.885012,0.00045139,120]
[358552355,1745247462551,-151.0,0.00045139,120]
[358552356,1745247462576,-151.0,0.00045139,120]
[358552357,1745247462602,-151.0,0.00045139,120]
[358552358,1745247462628,-151.0,0.00045139,120]
[358552359,1745247462653,-151.0,0.00045139,120]
[358552360,1745247462678,-151.0,0.00045139,120]
[358552361,1745247462704,-151.0,0.00045139,120]
[358552362,1745247462730,-151.0,0.00045139,120]
[358552363,1745247462755,-171.161032,0.00045139,120]
[358552364,1745247462781,-171.161032,0.00045139,120]
[358552365,1745247462806,-171.161032,0.00045139,120]
[358552366,1745247462831,-171.161032,0.00045139,120]
[358552367,1745247462856,-171.161032,0.00045139,120]
[358552368,1745247462881,-171.161032,0.00045139,120]
[358552369,1745247462906,-171.161032,0.00045139,120]
[358552370,1745247462932,-171.161032,0.00045139,120]
[358552371,1745247462958,-212.771843,0.00045139,120]
[358552372,1745247462984,-212.771843,0.00045139,120]
[358552373,1745247463011,-212.771843,0.00045139,120]
[358552374,1745247463048,-212.771843,0.00045139,120]
[358552375,1745247463075,-279.218968,0.00045139,120]
[358552376,1745247463103,-279.218968,0.00045139,120]
[358552377,1745247463129,-279.218968,0.00045139,120]
[358552378,1745247463156,-279.218968,0.00045139,120]
[358552379,1745247463183,-927.19387,0.00045139,120]
[358552380,1745247463214,-927.19387,0.00045139,120]
[358552381,1745247463242,-927.19387,0.00045139,120]
[358552382,1745247463269,-927.19387,0.00045139,120]
[358552383,1745247463298,-927.19387,0.00045139,120]
[358552384,1745247463325,-151.0,0.00045139,120]
[358552385,1745247463351,-151.0,0.00045139,120]
[358552386,1745247463378,-151.0,0.00045139,120]
[358552387,1745247463403,-151.0,0.00045139,120]
[358552388,1745247463428,-151.0,0.00045139,120]
[358552389,1745247463455,-151.0,0.00045139,120]
[358552390,1745247463482,-151.0,0.00045139,120]
[358552391,1745247463508,-151.0,0.00045139,120]
[358552392,1745247463532,-295.378,0.00045139,120]
[358552393,1745247463559,-151.0,0.00045148,120]
[358552394,1745247463682,-151.0,0.00045148,120]
[358552395,1745247463709,-1468.658193,0.00045148,120]
[358552396,1745247463736,-1468.658193,0.00045148,120]
[358552397,1745247463763,-1468.658193,0.00045148,120]
[358552398,1745247463789,-1468.658193,0.00045148,120]
[358552399,1745247463816,-1468.658193,0.00045148,120]
[358552400,1745247463842,-1468.658193,0.00045148,120]
[358552401,1745247463868,-1468.658193,0.00045148,120]
[358552402,1745247463894,-338.107533,0.00045148,120]
[358552403,1745247463919,-338.107533,0.00045148,120]
[358552404,1745247463945,-338.107533,0.00045148,120]
[358552405,1745247463972,-338.107533,0.00045148,120]
[358552406,1745247463998,-338.107533,0.00045148,120]
[358552407,1745247464023,-338.107533,0.00045148,120]
[358552408,1745247464051,-338.107533,0.00045148,120]
[358552409,1745247464076,-338.107533,0.00045148,120]
[358552410,1745247464102,-185.986166,0.00045148,120]
[358552411,1745247464129,-185.986166,0.00045148,120]
[358552412,1745247464155,-185.986166,0.00045148,120]
[358552413,1745247464182,-185.986166,0.00045148,120]
[358552414,1745247464214,-185.986166,0.00045148,120]
[358552415,1745247464243,-185.986166,0.00045148,120]
[358552416,1745247464270,-185.986166,0.00045148,120]
[358552417,1745247464298,-315.92132,0.00045148,120]
[358552418,1745247464325,-315.92132,0.00045148,120]
[358552419,1745247464351,-315.92132,0.00045148,120]
[358552420,1745247464376,-315.92132,0.00045148,120]
[358552421,1745247464402,-315.92132,0.00045148,120]
[358552422,1745247464428,-315.92132,0.00045148,120]
[358552423,1745247464455,-315.92132,0.00045148,120]
[358552424,1745247464482,-315.92132,0.00045148,120]
[358552425,1745247464508,-151.0,0.00045148,120]
[358552426,1745247464534,-151.0,0.00045148,120]
[358552427,1745247464560,-151.0,0.00045148,120]
[358552428,1745247464585,-151.0,0.00045148,120]
[358552429,1745247464611,-151.0,0.00045148,120]
[358552430,1745247464636,-151.0,0.00045148,120]
[358552431,1745247464661,-151.0,0.00045148,120]
[358552432,1745247464687,-260.130682,0.00045148,120]
[358552433,1745247464714,-151.0,0.00045151,120]
[358552434,1745247464739,-248.375766,0.00045151,120]
[358552435,1745247464763,-151.0,0.00045151,120]
[358552436,1745247464787,-151.0,0.00045151,120]
[358552437,1745247464813,-151.0,0.00045151,120]
[358552438,1745247464840,-151.0,0.00045151,120]
[358552439,1745247464865,-151.0,0.00045151,120]
[358552440,1745247464892,-151.0,0.00045151,120]
[358552441,1745247464919,-151.0,0.00045151,120]
[358552442,1745247464947,-151.0,0.00045151,120]
[358552443,1745247464974,-151.0,0.00045151,120]
[358552444,1745247465002,-151.0,0.00045151,120]
[358552445,1745247465031,-151.0,0.00045151,120]
[358552446,1745247465062,-151.0,0.00045151,120]
[358552447,1745247465091,-151.0,0.00045151,120]
[358552448,1745247465121,-151.0,0.00045151,120]
[358552449,1745247465149,-151.0,0.00045151,120]
[358552450,1745247465179,-151.0,0.00045151,120]
[358552451,1745247465212,-151.0,0.00045151,120]
[358552452,1745247465240,-151.0,0.00045151,120]
[358552453,1745247465271,-151.0,0.00045151,120]
[358552454,1745247465298,-151.0,0.00045151,120]
[358552455,1745247465327,-151.0,0.00045151,120]
[358552456,1745247465355,-151.0,0.00045151,120]
[358552457,1745247465382,-151.0,0.00045151,120]
[358552458,1745247465408,-151.0,0.00045151,120]
[358552459,1745247465435,-151.0,0.00045151,120]
[358552460,1745247465461,-151.0,0.00045151,120]
[358552461,1745247465488,-151.0,0.00045151,120]
[358552462,1745247465517,-165.313808,0.00045151,120]
[358552463,1745247465545,-151.0,0.00045151,120]
[358552464,1745247465573,-151.0,0.00045151,120]
[358552465,1745247465598,-151.0,0.0004516,120]
[358552466,1745247465623,-151.0,0.0004516,120]
[358552467,1745247465648,-151.0,0.0004516,120]
[358552468,1745247465674,-151.0,0.0004516,120]
[358552469,1745247465700,-151.0,0.0004516,120]
[358552470,1745247465726,-151.0,0.0004516,120]
[358552471,1745247465751,-151.0,0.0004516,120]
[358552472,1745247465777,-217.8541,0.0004516,120]
[358552473,1745247465804,-264.179442,0.00045166,120]
[358552474,1745247465831,-152.07734,0.00045166,120]
[358552475,1745247465858,-157.962512,0.00045166,120]
[358552476,1745247465883,-151.0,0.00045166,120]
[358552477,1745247465908,-151.0,0.00045166,120]
[358552478,1745247465936,-151.0,0.00045166,120]
[358552479,1745247465963,-151.0,0.00045166,120]
[358552480,1745247465991,-209.834992,0.00045166,120]
[358552481,1745247466018,-151.0,0.00045166,120]
[358552482,1745247466044,-151.0,0.00045166,120]
[358552483,1745247466073,-151.0,0.00045166,120]
[358552484,1745247466100,-225.843122,0.00045166,120]
[358552485,1745247466128,-151.0,0.00045166,120]
[358552486,1745247466156,-151.0,0.00045166,120]
[358552487,1745247466182,-151.0,0.00045166,120]
[358552488,1745247466213,-151.0,0.00045166,120]
[358552489,1745247466339,-151.0,0.00045166,120]
[358552490,1745247466368,-151.0,0.00045166,120]
[358552491,1745247466396,-151.0,0.00045166,120]
[358552492,1745247466423,-151.0,0.00045166,120]
[358552493,1745247466450,-151.0,0.00045166,120]
[358552494,1745247466478,-151.0,0.00045166,120]
[358552495,1745247466504,-151.0,0.00045166,120]
[358552496,1745247466531,-151.0,0.00045166,120]
[358552497,1745247466556,-185.986166,0.00045166,120]
[358552498,1745247466582,-151.0,0.00045166,120]
[358552499,1745247466607,-151.0,0.00045166,120]
[358552500,1745247466633,-167.694079,0.00045166,120]
[358552501,1745247466659,-151.0,0.00045166,120]
[358552502,1745247466685,-151.0,0.00045166,120]
[358552503,1745247466710,-151.0,0.00045166,30]
[358552504,1745247466736,-151.0,0.00045166,30]
[358552505,1745247466762,-407.659285,0.00045166,120]
[358552506,1745247466791,-407.659285,0.00045166,120]
[358552507,1745247466819,-407.659285,0.00045166,120]
[358552508,1745247466844,-407.659285,0.00045166,120]
[358552509,1745247466870,-407.659285,0.00045166,120]
[358552510,1745247466897,-407.659285,0.00045166,120]
[358552511,1745247466925,-407.659285,0.00045166,120]
[358552512,1745247466952,-407.659285,0.00045166,120]
[358552513,1745247466980,-200.0,0.00045169,120]
[358552514,1745247467007,-553.8803473,0.000452,120]
[358552515,1745247467033,-250.0,0.000452,30]
[358552516,1745247467060,-250.0,0.000452,30]
[358552517,1745247467085,-250.0,0.000452,30]
[358552518,1745247467112,-250.0,0.000452,30]
[358552519,1745247467139,-250.0,0.000452,30]
[358552520,1745247467166,-157.48,0.000452,30]
[358552521,1745247467195,-151.0,0.00045214,120]
[358552522,1745247467222,-151.0,0.00045214,120]
[358552523,1745247467249,-151.0,0.00045214,120]
[358552524,1745247467278,-151.0,0.00045214,120]
[358552525,1745247467304,-151.0,0.00045214,120]
[358552526,1745247467330,-179.114353,0.00045214,120]
[358552527,1745247467358,-151.0,0.00045214,120]
[358552528,1745247467383,-151.0,0.00045214,120]
[358552529,1745247467408,-151.0,0.00045214,120]
[358552530,1745247467434,-151.0,0.00045214,120]
[358552531,1745247467460,-151.0,0.00045214,120]
[358552532,1745247467486,-151.0,0.00045214,120]
[358552533,1745247467512,-170.540551,0.00045214,120]
[358552534,1745247467539,-170.540551,0.00045214,120]
[358552535,1745247467565,-170.540551,0.00045214,120]
[358552536,1745247467592,-170.540551,0.00045214,120]
[358552537,1745247467619,-170.540551,0.00045214,120]
[358552538,1745247467645,-170.540551,0.00045214,120]
[358552539,1745247467670,-151.0,0.00045221,120]
[358552540,1745247467695,-228.182589,0.00045221,120]
[358552541,1745247467721,-151.0,0.00045221,120]
[358552542,1745247467746,-151.0,0.00045221,120]
[358552543,1745247467772,-151.0,0.00045221,120]
[358552544,1745247467799,-500.0,0.00045292,120]
[358552545,1745247467827,-277.80516143,0.00045479,120]
[358552546,1745247467854,-500.0,0.00045492,120]
[358552547,1745247467879,-5179.22,0.000455,120]
[358552548,1745247467905,-8050.8,0.000456,30]
[358552549,1745247467933,-500.0,0.00045692,120]
[358552550,1745247467959,-2085.83,0.000457,30]
[358552551,1745247467985,-2085.83,0.000457,30]
[358552552,1745247468011,-500.0,0.00045892,120]
[358552553,1745247468038,-208.50180551,0.000459,120]
[358552554,1745247468066,-200.0,0.000459,65]
[358552555,1745247468094,-200.0,0.000459,65]
[358552556,1745247468122,-200.0,0.000459,65]
[358552557,1745247468148,-1180.0,0.0004595,120]
[358552558,1745247468175,-10363.73421316,0.00045999,30]
[358552559,1745247468205,-571.42478779,0.00046,60]
[358552560,1745247468234,-300.0,0.00046,120]
[358552561,1745247468260,-769.58,0.00046,120]
[358552562,1745247468287,-10000.0,0.00046,30]
[358552563,1745247468314,-200.0,0.00046,65]
[358552564,1745247468345,-500.0,0.00046092,120]
[358552565,1745247468372,-151.0,0.00046139,120]
[358552566,1745247468398,-151.0,0.00046139,120]
[358552567,1745247468425,-151.0,0.00046139,120]
[358552568,1745247468452,-171.161032,0.00046139,120]
[358552569,1745247468479,-171.161032,0.00046139,120]
[358552570,1745247468507,-212.771843,0.00046139,120]
[358552571,1745247468532,-212.771843,0.00046139,120]
[358552572,1745247468558,-279.218968,0.00046139,120]
[358552573,1745247468585,-927.19387,0.00046139,120]
[358552574,1745247468612,-927.19387,0.00046139,120]
[358552575,1745247468638,-246.40491,0.0004616,120]
[358552576,1745247468664,-151.0,0.00046166,120]
[358552577,1745247468690,-407.659285,0.00046166,120]
[358552578,1745247468716,-407.659285,0.00046166,120]
[358552579,1745247468740,-151.0,0.00046221,120]
[358552580,1745247468765,-151.0,0.00046221,120]
[358552581,1745247468792,-500.0,0.00046292,120]
[358552582,1745247468817,-757.95,0.00046301,30]
[358552583,1745247468843,-8050.79,0.000464,30]
[358552584,1745247468970,-500.0,0.00046492,120]
[358552585,1745247468996,-757.95,0.00046575,32]
[358552586,1745247469039,-500.0,0.00046692,120]
[358552587,1745247469080,-394.95,0.00046694,30]
[358552588,1745247469122,-200.0,0.00046779,120]
[358552589,1745247469165,-1591.29863697,0.000468,90]
[358552590,1745247469206,-188.0,0.000468,120]
[358552591,1745247469248,-757.95,0.00046849,34]
[358552592,1745247469290,-500.0,0.00046892,120]
[358552593,1745247469333,-200.0,0.000469,68]
[358552594,1745247469377,-200.0,0.000469,68]
[358552595,1745247469420,-200.0,0.000469,68]
[358552596,1745247469464,-200.0,0.00047,69]
[358552597,1745247469506,-8050.8,0.00047,30]
[358552598,1745247469548,-500.0,0.00047092,120]
[358552599,1745247469589,-757.95,0.00047123,36]
[358552600,1745247469632,-500.0,0.00047292,120]
[358552601,1745247469674,-757.95,0.00047397,38]
[358552602,1745247469715,-200.0,0.00047399,120]
[358552603,1745247469756,-500.0,0.00047492,120]
[358552604,1745247469798,-200.0,0.00047557,120]
[358552605,1745247469838,-200.0,0.00047604,120]
[358552606,1745247469877,-757.95,0.00047671,40]
[358552607,1745247469918,-500.0,0.00047692,120]
[358552608,1745247469960,-1468.658193,0.0004775,120]
[358552609,1745247470003,-1468.658193,0.0004775,120]
[358552610,1745247470046,-151.0,0.0004775,120]
[358552611,1745247470086,-151.0,0.0004775,120]
[358552612,1745247470129,-315.92132,0.0004775,120]
[358552613,1745247470169,-315.92132,0.0004775,120]
[358552614,1745247470210,-151.0,0.0004775,120]
[358552615,1745247470251,-338.107533,0.000478,120]
[358552616,1745247470294,-338.107533,0.000478,120]
[358552617,1745247470336,-185.986166,0.000478,120]
[358552618,1745247470378,-185.986166,0.000478,120]
[358552619,1745247470419,-200.0,0.00047812,120]
[358552620,1745247470461,-152.59289,0.00047892,120]
[358552621,1745247470503,-151.0,0.00047892,120]
[358552622,1745247470545,-151.0,0.00047892,120]
[358552623,1745247470586,-151.0,0.00047892,120]
[358552624,1745247470627,-500.0,0.00047892,120]
[358552625,1745247470668,-843.03624435,0.000479,120]
[358552626,1745247470711,-200.0,0.000479,72]
[358552628,1745247470752,-200.0,0.000479,72]
[358552629,1745247470795,-200.0,0.000479,72]
[358552630,1745247470835,-757.95,0.00047945,42]
[358552631,1745247470877,-300.0,0.00048,120]
[358552632,1745247470918,-200.0,0.00048,73]
[358552633,1745247470960,-200.0,0.00048016,120]
[358552634,1745247471002,-500.0,0.00048092,120]
[358552635,1745247471046,-200.0,0.00048185,120]
[358552636,1745247471088,-151.0,0.00048185,120]
[358552637,1745247471129,-151.0,0.00048192,120]
[358552638,1745247471171,-247.087372,0.00048192,120]
[358552639,1745247471217,-200.0,0.000482,120]
[358552640,1745247471260,-757.95,0.00048219,44]
[358552641,1745247471307,-500.0,0.00048292,120]
[358552642,1745247471350,-500.0,0.00048492,120]
[358552643,1745247471393,-757.95,0.00048493,46]
[358552644,1745247471436,-500.0,0.00048692,120]
[358552645,1745247471479,-757.95,0.00048767,48]
[358552646,1745247471521,-2221.57461305,0.000488,120]
[358552647,1745247471565,-200.0,0.00048874,120]
[358552648,1745247471607,-151.0,0.00048892,120]
[358552649,1745247471650,-151.0,0.00048892,120]
[358552650,1745247471691,-500.0,0.00048892,120]
[358552651,1745247471734,-200.0,0.000489,76]
[358552652,1745247471774,-200.0,0.000489,76]
[358552653,1745247471815,-200.0,0.000489,76]
[358552654,1745247471854,-10000.0,0.00049,30]
[358552655,1745247471894,-2915.64550625,0.00049,120]
[358552656,1745247471934,-200.0,0.00049,77]
[358552657,1745247471974,-151.0,0.00049,120]
[358552658,1745247472014,-151.0,0.00049,120]
[358552659,1745247472054,-151.0,0.00049,120]
[358552660,1745247472093,-170.540551,0.00049,120]
[358552661,1745247472133,-170.540551,0.00049,120]
[358552662,1745247472173,-757.95,0.00049041,50]
[358552663,1745247472215,-500.0,0.00049092,120]
[358552664,1745247472254,-500.0,0.00049292,120]
[358552665,1745247472294,-676.4908804,0.00049315,60]
[358552666,1745247472334,-757.95,0.00049315,52]
[358552667,1745247472374,-500.0,0.00049492,120]
[358552668,1745247472413,-200.0,0.0004953,120]
[358552669,1745247472450,-757.95,0.00049589,54]
[358552670,1745247472488,-155.0,0.00049653,120]
[358552671,1745247472526,-500.0,0.00049692,120]
[358552672,1745247472566,-757.95,0.00049863,56]
[358552673,1745247472607,-500.0,0.00049892,120]
[358552674,1745247472648,-250.499999,0.000499,80]
[358552675,1745247472688,-200.0,0.000499,80]
[358552676,1745247472728,-200.0,0.000499,80]
[358552677,1745247472766,-200.0,0.00049939,120]
[358552678,1745247472804,-500.21,0.00049999,90]
[358552679,1745247472949,-411.78958778,0.00049999,120]
[358552680,1745247472989,-475.65986529,0.00049999,31]
[358552681,1745247473029,-200.0,0.0005,81]
[358552682,1745247473069,-745.31364315,0.0005,120]
[358552683,1745247473110,-1506.87949065,0.0005,30]
[358552684,1745247473151,-706.99369597,0.0005,120]
[358552685,1745247473190,-1000.0,0.0005,120]
[358552686,1745247473231,-306.2901,0.0005,120]
[358552687,1745247473276,-300.0,0.0005,120]
[358552688,1745247473316,-3006.37114316,0.0005,120]
[358552689,1745247473354,-2000.0,0.0005,30]
[358552690,1745247473394,-1066.69999986,0.0005,120]
[358552691,1745247473431,-201.60438473,0.0005,120]
[358552692,1745247473474,-250.5,0.0005,81]
[358552693,1745247473513,-312.84021666,0.0005,120]
[358552694,1745247473555,-500.0,0.00050092,120]
[358552695,1745247473595,-757.95,0.00050136,58]
[358552696,1745247473637,-500.0,0.00050164,120]
[358552697,1745247473676,-500.0,0.00050292,120]
[358552698,1745247473717,-200.0,0.000503,120]
[358552699,1745247473755,-200.0,0.00050311,120]
[358552700,1745247473793,-200.0,0.00050403,120]
[358552701,1745247473831,-757.95,0.0005041,60]
[358552702,1745247473870,-500.0,0.00050492,120]